[Event "Titled Tuesday Blitz July 11 Early 2023"]
[White "Roque Sola, Jose Luis"]
[Black "Fernandez, Michael"]
[WhiteFideId "5120390"]
[BlackFideId "5803560"]
[WhiteElo "2128"]
[BlackElo "2349"]
[Result "1-0"]
[Round "6"]
[TimeControl "180+2"]
[Date "2023.07.11"]
[WhiteClock "0:00:14"]
[BlackClock "0:00:02"]
[Board "175"]

1. c4 {[%clk 0:03:00]}  c6 {[%clk 0:02:36]} 2. Nf3 {[%clk 0:02:58]}  d5 {[%clk 0:02:35]} 3. b3 {[%clk 0:02:57]}  Nf6 {[%clk 0:02:33]} 4. Bb2 {[%clk 0:02:57]}  Bf5 {[%clk 0:02:32]} 5. d3 {[%clk 0:02:51]}  e6 {[%clk 0:02:30]} 6. g3 {[%clk 0:02:51]}  Nbd7 {[%clk 0:02:28]} 7. Bg2 {[%clk 0:02:51]}  h6 {[%clk 0:02:24]} 8. O-O {[%clk 0:02:51]}  Bd6 {[%clk 0:02:16]} 9. Nc3 {[%clk 0:02:14]}  Qe7 {[%clk 0:02:09]} 10. Qc2 {[%clk 0:02:07]}  O-O {[%clk 0:02:05]} 11. e4 {[%clk 0:02:06]}  dxe4 {[%clk 0:02:02]} 12. dxe4 {[%clk 0:02:07]}  Bh7 {[%clk 0:02:02]} 13. Rad1 {[%clk 0:02:07]}  Rfd8 {[%clk 0:01:53]} 14. Qe2 {[%clk 0:01:55]}  e5 {[%clk 0:01:35]} 15. Rd2 {[%clk 0:01:44]}  Bb4 {[%clk 0:01:28]} 16. Rfd1 {[%clk 0:01:43]}  Nc5 {[%clk 0:01:14]} 17. Rxd8+ {[%clk 0:01:35]}  Rxd8 {[%clk 0:01:13]} 18. Rxd8+ {[%clk 0:01:33]}  Qxd8 {[%clk 0:01:13]} 19. Nxe5 {[%clk 0:01:28]}  Bxc3 {[%clk 0:01:13]} 20. Bxc3 {[%clk 0:01:27]}  Bxe4 {[%clk 0:01:06]} 21. Nxf7 {[%clk 0:00:55]}  Qd3 {[%clk 0:00:23]} 22. Qxd3 {[%clk 0:00:49]}  Bxd3 {[%clk 0:00:23]} 23. Bxf6 {[%clk 0:00:46]}  gxf6 {[%clk 0:00:17]} 24. Nd6 {[%clk 0:00:43]}  Bb1 {[%clk 0:00:05]} 25. b4 {[%clk 0:00:40]}  Na6 {[%clk 0:00:04]} 26. a3 {[%clk 0:00:39]}  Nc7 {[%clk 0:00:01]} 27. Nxb7 {[%clk 0:00:37]}  Ba2 {[%clk 0:00:02]} 28. c5 {[%clk 0:00:33]}  Nd5 {[%clk 0:00:02]} 29. Nd6 {[%clk 0:00:31]}  Kf8 {[%clk 0:00:02]} 30. Ne4 {[%clk 0:00:30]}  Ke7 {[%clk 0:00:02]} 31. f4 {[%clk 0:00:26]}  Bc4 {[%clk 0:00:02]} 32. Kf2 {[%clk 0:00:25]}  Bd3 {[%clk 0:00:02]} 33. Nd2 {[%clk 0:00:20]}  Kd7 {[%clk 0:00:01]} 34. Bxd5 {[%clk 0:00:20]}  cxd5 {[%clk 0:00:02]} 35. Ke3 {[%clk 0:00:20]}  Bf5 {[%clk 0:00:01]} 36. Kd4 {[%clk 0:00:19]}  Kc6 {[%clk 0:00:02]} 37. a4 {[%clk 0:00:18]}  a6 {[%clk 0:00:02]} 38. Nf3 {[%clk 0:00:16]}  Be4 {[%clk 0:00:02]} 39. Nh4 {[%clk 0:00:16]}  f5 {[%clk 0:00:01]} 40. Ng6 {[%clk 0:00:14]}  a5 {[%clk 0:00:02]} 1-0


[Site "https://www.chess.com"]

[Event "Titled Tuesday Blitz July 11 Early 2023"]
[White "Shapiro, Daniel"]
[Black "Mangialardo, Tiago Carvalho"]
[WhiteFideId "2001780"]
[BlackFideId "2130718"]
[WhiteElo "2334"]
[BlackElo "2125"]
[Result "0-1"]
[Round "6"]
[TimeControl "180+2"]
[Date "2023.07.11"]
[WhiteClock "0:00:00"]
[BlackClock "0:00:03"]
[Board "176"]

1. d4 {[%clk 0:03:00]}  Nf6 {[%clk 0:02:59]} 2. c4 {[%clk 0:03:00]}  c5 {[%clk 0:02:59]} 3. d5 {[%clk 0:03:00]}  g6 {[%clk 0:02:59]} 4. Nc3 {[%clk 0:02:59]}  Bg7 {[%clk 0:03:00]} 5. e4 {[%clk 0:03:00]}  d6 {[%clk 0:03:00]} 6. h3 {[%clk 0:03:00]}  O-O {[%clk 0:02:59]} 7. Nf3 {[%clk 0:03:01]}  e6 {[%clk 0:02:58]} 8. Bd3 {[%clk 0:03:01]}  exd5 {[%clk 0:02:58]} 9. cxd5 {[%clk 0:03:01]}  b5 {[%clk 0:02:55]} 10. Nxb5 {[%clk 0:03:01]}  Nxe4 {[%clk 0:02:52]} 11. O-O {[%clk 0:03:01]}  Nf6 {[%clk 0:02:27]} 12. Bf4 {[%clk 0:02:45]}  Ne8 {[%clk 0:02:18]} 13. Qb3 {[%clk 0:02:29]}  a6 {[%clk 0:01:57]} 14. Na3 {[%clk 0:02:27]}  Nd7 {[%clk 0:01:49]} 15. Nc4 {[%clk 0:02:17]}  Rb8 {[%clk 0:01:49]} 16. Qc2 {[%clk 0:02:00]}  Nb6 {[%clk 0:01:44]} 17. Na5 {[%clk 0:01:11]}  Nxd5 {[%clk 0:01:09]} 18. Nc6 {[%clk 0:00:49]}  Qc7 {[%clk 0:01:07]} 19. Nxb8 {[%clk 0:00:40]}  Nxf4 {[%clk 0:01:06]} 20. Nxa6 {[%clk 0:00:40]}  Qb6 {[%clk 0:01:02]} 21. Bc4 {[%clk 0:00:16]}  Bxa6 {[%clk 0:00:48]} 22. Rfd1 {[%clk 0:00:13]}  Nf6 {[%clk 0:00:14]} 23. Rab1 {[%clk 0:00:12]}  Bb7 {[%clk 0:00:07]} 24. Ne1 {[%clk 0:00:06]}  Qc6 {[%clk 0:00:04]} 25. Bf1 {[%clk 0:00:06]}  Nxh3+ {[%clk 0:00:03]} 26. Kh2 {[%clk 0:00:06]}  Nf4 {[%clk 0:00:03]} 27. Qd2 {[%clk 0:00:05]}  N4h5 {[%clk 0:00:03]} 28. Qxd6 {[%clk 0:00:04]}  Qe4 {[%clk 0:00:03]} 29. Qd3 {[%clk 0:00:02]}  Qh4+ {[%clk 0:00:03]} 30. Kg1 {[%clk 0:00:00]}  Be4 {[%clk 0:00:03]} 0-1


[Site "https://www.chess.com"]

[Event "Titled Tuesday Blitz July 11 Early 2023"]
[White "campochess"]
[Black "Okike, David"]
[BlackFideId "8500134"]
[WhiteElo "2116"]
[BlackElo "2305"]
[Result "0-1"]
[Round "6"]
[TimeControl "180+2"]
[Date "2023.07.11"]
[WhiteClock "0:00:13"]
[BlackClock "0:01:18"]
[Board "179"]

1. d4 {[%clk 0:02:41]}  Nf6 {[%clk 0:02:58]} 2. Bg5 {[%clk 0:02:40]}  e6 {[%clk 0:02:58]} 3. e4 {[%clk 0:02:39]}  d5 {[%clk 0:02:57]} 4. e5 {[%clk 0:02:38]}  h6 {[%clk 0:02:57]} 5. Be3 {[%clk 0:02:35]}  Nfd7 {[%clk 0:02:56]} 6. c4 {[%clk 0:02:35]}  c5 {[%clk 0:02:50]} 7. cxd5 {[%clk 0:02:35]}  exd5 {[%clk 0:02:50]} 8. e6 {[%clk 0:02:32]}  Nf6 {[%clk 0:02:46]} 9. Bb5+ {[%clk 0:02:28]}  Nc6 {[%clk 0:02:44]} 10. exf7+ {[%clk 0:02:26]}  Kxf7 {[%clk 0:02:44]} 11. Nc3 {[%clk 0:02:25]}  c4 {[%clk 0:02:35]} 12. Bxc6 {[%clk 0:02:23]}  bxc6 {[%clk 0:02:35]} 13. Nf3 {[%clk 0:02:23]}  Qb6 {[%clk 0:02:32]} 14. Qc2 {[%clk 0:02:15]}  Bd6 {[%clk 0:02:32]} 15. O-O {[%clk 0:02:14]}  Re8 {[%clk 0:02:30]} 16. Ne5+ {[%clk 0:02:11]}  Kg8 {[%clk 0:02:30]} 17. Na4 {[%clk 0:02:01]}  Qc7 {[%clk 0:02:30]} 18. f4 {[%clk 0:02:00]}  Ne4 {[%clk 0:02:29]} 19. Rac1 {[%clk 0:01:52]}  Bf5 {[%clk 0:02:21]} 20. Qd1 {[%clk 0:01:48]}  Rac8 {[%clk 0:02:14]} 21. b3 {[%clk 0:01:48]}  Bxe5 {[%clk 0:02:09]} 22. fxe5 {[%clk 0:01:46]}  Qd7 {[%clk 0:01:53]} 23. bxc4 {[%clk 0:01:43]}  Bg4 {[%clk 0:01:53]} 24. Qe1 {[%clk 0:01:36]}  Rb8 {[%clk 0:01:44]} 25. cxd5 {[%clk 0:01:25]}  cxd5 {[%clk 0:01:44]} 26. Nc5 {[%clk 0:01:24]}  Nxc5 {[%clk 0:01:42]} 27. Rxc5 {[%clk 0:01:23]}  Rb2 {[%clk 0:01:42]} 28. Qg3 {[%clk 0:01:21]}  Kh8 {[%clk 0:01:34]} 29. h3 {[%clk 0:01:21]}  Bf5 {[%clk 0:01:29]} 30. e6 {[%clk 0:01:20]}  Qxe6 {[%clk 0:01:27]} 31. Bf4 {[%clk 0:01:17]}  Be4 {[%clk 0:01:27]} 32. Be5 {[%clk 0:01:15]}  Rxg2+ {[%clk 0:01:25]} 33. Qxg2 {[%clk 0:01:13]}  Bxg2 {[%clk 0:01:26]} 34. Kxg2 {[%clk 0:01:13]}  Re7 {[%clk 0:01:21]} 35. Rf8+ {[%clk 0:00:56]}  Kh7 {[%clk 0:01:21]} 36. Rd8 {[%clk 0:00:55]}  Qg6+ {[%clk 0:01:21]} 37. Kh2 {[%clk 0:00:50]}  Rf7 {[%clk 0:01:21]} 38. Bg3 {[%clk 0:00:38]}  Rf3 {[%clk 0:01:20]} 39. Be1 {[%clk 0:00:20]}  Qe4 {[%clk 0:01:18]} 40. Rdxd5 {[%clk 0:00:14]}  Qe2+ {[%clk 0:01:18]} 41. Kg1 {[%clk 0:00:13]}  Rf1# {[%clk 0:01:18]} 0-1


[Site "https://www.chess.com"]

[Event "Titled Tuesday Blitz July 11 Early 2023"]
[White "Dwilewicz, Katarzyna"]
[Black "Winkels, Marcel"]
[WhiteFideId "1148486"]
[BlackFideId "1003887"]
[WhiteElo "2295"]
[BlackElo "2094"]
[Result "0-1"]
[Round "6"]
[TimeControl "180+2"]
[Date "2023.07.11"]
[WhiteClock "0:00:01"]
[BlackClock "0:00:39"]
[Board "182"]

1. e4 {[%clk 0:03:00]}  c5 {[%clk 0:02:57]} 2. f4 {[%clk 0:03:00]}  Nc6 {[%clk 0:02:54]} 3. Nf3 {[%clk 0:03:00]}  g6 {[%clk 0:02:54]} 4. Nc3 {[%clk 0:02:54]}  Bg7 {[%clk 0:02:55]} 5. d3 {[%clk 0:02:54]}  d6 {[%clk 0:02:55]} 6. Be3 {[%clk 0:02:54]}  e6 {[%clk 0:02:56]} 7. Qd2 {[%clk 0:02:55]}  Nd4 {[%clk 0:02:55]} 8. Be2 {[%clk 0:02:52]}  Ne7 {[%clk 0:02:54]} 9. O-O-O {[%clk 0:02:51]}  Rb8 {[%clk 0:02:48]} 10. g4 {[%clk 0:02:46]}  f5 {[%clk 0:02:43]} 11. g5 {[%clk 0:02:38]}  b5 {[%clk 0:02:40]} 12. h4 {[%clk 0:02:16]}  b4 {[%clk 0:02:39]} 13. Nb1 {[%clk 0:02:15]}  Qa5 {[%clk 0:02:16]} 14. a3 {[%clk 0:02:11]}  Nxe2+ {[%clk 0:02:15]} 15. Qxe2 {[%clk 0:02:09]}  bxa3 {[%clk 0:02:14]} 16. c3 {[%clk 0:01:33]}  a2 {[%clk 0:02:08]} 17. h5 {[%clk 0:01:19]}  gxh5 {[%clk 0:01:49]} 18. Rxh5 {[%clk 0:01:19]}  a1=Q {[%clk 0:01:48]} 19. e5 {[%clk 0:01:15]}  Q5a2 {[%clk 0:01:37]} 20. Qc2 {[%clk 0:01:14]}  Nd5 {[%clk 0:01:28]} 21. Bg1 {[%clk 0:01:05]}  Qa4 {[%clk 0:01:25]} 22. Qd2 {[%clk 0:00:52]}  Qb3 {[%clk 0:01:20]} 23. Rh2 {[%clk 0:00:51]}  Ba6 {[%clk 0:01:11]} 24. Ne1 {[%clk 0:00:35]}  Qaa4 {[%clk 0:01:05]} 25. Re2 {[%clk 0:00:33]}  dxe5 {[%clk 0:00:58]} 26. fxe5 {[%clk 0:00:32]}  O-O {[%clk 0:00:56]} 27. g6 {[%clk 0:00:25]}  Bh6 {[%clk 0:00:48]} 28. gxh7+ {[%clk 0:00:19]}  Kh8 {[%clk 0:00:47]} 29. Qxh6 {[%clk 0:00:01]}  Qxd1# {[%clk 0:00:39]} 0-1


[Site "https://www.chess.com"]

[Event "Titled Tuesday Blitz July 11 Early 2023"]
[White "Xavier_mompel"]
[Black "Goughfather"]
[WhiteElo "2252"]
[BlackElo "2038"]
[Result "1-0"]
[Round "6"]
[TimeControl "180+2"]
[Date "2023.07.11"]
[WhiteClock "0:00:55"]
[BlackClock "0:00:01"]
[Board "184"]

1. e4 {[%clk 0:03:00]}  c6 {[%clk 0:02:49]} 2. d4 {[%clk 0:03:00]}  d5 {[%clk 0:02:48]} 3. e5 {[%clk 0:03:00]}  c5 {[%clk 0:02:47]} 4. Nf3 {[%clk 0:02:59]}  e6 {[%clk 0:02:33]} 5. c4 {[%clk 0:02:58]}  dxc4 {[%clk 0:02:29]} 6. Bxc4 {[%clk 0:02:56]}  cxd4 {[%clk 0:02:20]} 7. Nxd4 {[%clk 0:02:53]}  Bc5 {[%clk 0:02:20]} 8. Be3 {[%clk 0:02:44]}  Bb4+ {[%clk 0:01:58]} 9. Nc3 {[%clk 0:02:42]}  Ne7 {[%clk 0:01:56]} 10. Qa4+ {[%clk 0:02:38]}  Nbc6 {[%clk 0:01:56]} 11. Nxc6 {[%clk 0:02:34]}  Nxc6 {[%clk 0:01:56]} 12. Bb5 {[%clk 0:02:34]}  Bxc3+ {[%clk 0:01:56]} 13. bxc3 {[%clk 0:02:34]}  Bd7 {[%clk 0:01:50]} 14. Rd1 {[%clk 0:02:29]}  Qc8 {[%clk 0:01:50]} 15. O-O {[%clk 0:02:22]}  Nxe5 {[%clk 0:01:41]} 16. Bxd7+ {[%clk 0:02:15]}  Nxd7 {[%clk 0:01:36]} 17. Rd6 {[%clk 0:02:12]}  Qc7 {[%clk 0:01:26]} 18. Rfd1 {[%clk 0:02:10]}  Rd8 {[%clk 0:01:26]} 19. Bf4 {[%clk 0:02:03]}  Qc8 {[%clk 0:01:11]} 20. Qd4 {[%clk 0:01:42]}  Rg8 {[%clk 0:00:46]} 21. Bg5 {[%clk 0:01:34]}  f6 {[%clk 0:00:43]} 22. Rxe6+ {[%clk 0:01:29]}  Kf7 {[%clk 0:00:43]} 23. Qd6 {[%clk 0:01:26]}  Rge8 {[%clk 0:00:31]} 24. Rxe8 {[%clk 0:01:24]}  Rxe8 {[%clk 0:00:22]} 25. Qxd7+ {[%clk 0:01:17]}  Qxd7 {[%clk 0:00:19]} 26. Rxd7+ {[%clk 0:01:18]}  Ke6 {[%clk 0:00:19]} 27. Rxg7 {[%clk 0:01:14]}  fxg5 {[%clk 0:00:19]} 28. Rxb7 {[%clk 0:01:14]}  Kf6 {[%clk 0:00:15]} 29. g3 {[%clk 0:01:12]}  Rc8 {[%clk 0:00:14]} 30. Rxh7 {[%clk 0:01:10]}  a5 {[%clk 0:00:12]} 31. Ra7 {[%clk 0:01:10]}  Rc5 {[%clk 0:00:12]} 32. Kf1 {[%clk 0:01:06]}  Kf5 {[%clk 0:00:11]} 33. h3 {[%clk 0:01:04]}  Ke4 {[%clk 0:00:11]} 34. Ke2 {[%clk 0:01:05]}  Kd5 {[%clk 0:00:09]} 35. Kd3 {[%clk 0:01:04]}  Ke5 {[%clk 0:00:09]} 36. Rg7 {[%clk 0:01:01]}  Kf6 {[%clk 0:00:08]} 37. Ra7 {[%clk 0:00:59]}  Rf5 {[%clk 0:00:08]} 38. Ra6+ {[%clk 0:00:56]}  Kf7 {[%clk 0:00:07]} 39. Ke3 {[%clk 0:00:56]}  Re5+ {[%clk 0:00:07]} 40. Kf3 {[%clk 0:00:56]}  Rc5 {[%clk 0:00:07]} 41. Kg4 {[%clk 0:00:55]}  Rxc3 {[%clk 0:00:01]} 42. Rxa5 {[%clk 0:00:55]} 1-0


[Site "https://www.chess.com"]

[Event "Titled Tuesday Blitz July 11 Early 2023"]
[White "Matute Escobar, Roxanny"]
[Black "Lohani, Sujana"]
[WhiteFideId "3926028"]
[BlackFideId "12311987"]
[WhiteElo "2196"]
[BlackElo "1921"]
[Result "1-0"]
[Round "6"]
[TimeControl "180+2"]
[Date "2023.07.11"]
[WhiteClock "0:00:18"]
[BlackClock "0:00:00"]
[Board "187"]

1. e4 {[%clk 0:03:00]}  c5 {[%clk 0:02:59]} 2. Nf3 {[%clk 0:03:00]}  Nc6 {[%clk 0:02:59]} 3. d4 {[%clk 0:03:01]}  cxd4 {[%clk 0:02:59]} 4. Nxd4 {[%clk 0:03:01]}  g6 {[%clk 0:02:57]} 5. Nc3 {[%clk 0:03:02]}  Bg7 {[%clk 0:02:57]} 6. Be3 {[%clk 0:03:03]}  Nf6 {[%clk 0:02:54]} 7. Bc4 {[%clk 0:03:03]}  O-O {[%clk 0:02:47]} 8. Bb3 {[%clk 0:03:04]}  e6 {[%clk 0:02:46]} 9. f3 {[%clk 0:03:02]}  d5 {[%clk 0:02:37]} 10. exd5 {[%clk 0:02:58]}  exd5 {[%clk 0:02:36]} 11. Qd2 {[%clk 0:02:53]}  Re8 {[%clk 0:02:28]} 12. O-O-O {[%clk 0:02:53]}  a5 {[%clk 0:02:00]} 13. a3 {[%clk 0:02:36]}  Nxd4 {[%clk 0:01:42]} 14. Bxd4 {[%clk 0:02:37]}  Bd7 {[%clk 0:01:40]} 15. h4 {[%clk 0:02:26]}  b5 {[%clk 0:01:37]} 16. h5 {[%clk 0:02:26]}  b4 {[%clk 0:01:36]} 17. axb4 {[%clk 0:02:25]}  axb4 {[%clk 0:01:36]} 18. Nb1 {[%clk 0:02:26]}  Ba4 {[%clk 0:01:18]} 19. Bxa4 {[%clk 0:02:22]}  Rxa4 {[%clk 0:01:17]} 20. hxg6 {[%clk 0:02:23]}  hxg6 {[%clk 0:01:15]} 21. g4 {[%clk 0:02:06]}  b3 {[%clk 0:00:55]} 22. c3 {[%clk 0:01:57]}  Ra1 {[%clk 0:00:49]} 23. g5 {[%clk 0:01:49]}  Qa5 {[%clk 0:00:44]} 24. Qd3 {[%clk 0:01:47]}  Nh5 {[%clk 0:00:16]} 25. Bxg7 {[%clk 0:01:47]}  Kxg7 {[%clk 0:00:16]} 26. Rde1 {[%clk 0:01:24]}  Rxe1+ {[%clk 0:00:14]} 27. Rxe1 {[%clk 0:01:25]}  Kg8 {[%clk 0:00:13]} 28. Re8+ {[%clk 0:01:17]}  Kh7 {[%clk 0:00:10]} 29. Qd4 {[%clk 0:00:54]}  Ng7 {[%clk 0:00:07]} 30. Qh4+ {[%clk 0:00:45]}  Nh5 {[%clk 0:00:07]} 31. Qd4 {[%clk 0:00:45]}  Ng7 {[%clk 0:00:06]} 32. Qd3 {[%clk 0:00:41]}  Qc5 {[%clk 0:00:04]} 33. Re1 {[%clk 0:00:40]}  Nh5 {[%clk 0:00:03]} 34. f4 {[%clk 0:00:39]}  Qf2 {[%clk 0:00:03]} 35. Rf1 {[%clk 0:00:36]}  Qg2 {[%clk 0:00:02]} 36. Re1 {[%clk 0:00:20]}  Ra2 {[%clk 0:00:00]} 37. Qd2 {[%clk 0:00:18]} 1-0


[Site "https://www.chess.com"]

[Event "Titled Tuesday Blitz July 11 Early 2023"]
[White "Kopacz, Grzegorz"]
[Black "Blokhin, Sofia"]
[WhiteFideId "1109880"]
[BlackFideId "4508190"]
[WhiteElo "2213"]
[BlackElo "2286"]
[Result "0-1"]
[Round "6"]
[TimeControl "180+2"]
[Date "2023.07.11"]
[WhiteClock "0:00:15"]
[BlackClock "0:00:08"]
[Board "192"]

1. d4 {[%clk 0:03:00]}  f5 {[%clk 0:02:58]} 2. Bg5 {[%clk 0:02:59]}  g6 {[%clk 0:02:57]} 3. c4 {[%clk 0:02:54]}  Bg7 {[%clk 0:02:57]} 4. Nc3 {[%clk 0:02:53]}  Nf6 {[%clk 0:02:57]} 5. Bxf6 {[%clk 0:02:52]}  Bxf6 {[%clk 0:02:56]} 6. e4 {[%clk 0:02:53]}  fxe4 {[%clk 0:02:56]} 7. Nxe4 {[%clk 0:02:54]}  O-O {[%clk 0:02:56]} 8. Nxf6+ {[%clk 0:02:53]}  exf6 {[%clk 0:02:57]} 9. Qd2 {[%clk 0:02:47]}  b6 {[%clk 0:02:53]} 10. O-O-O {[%clk 0:02:45]}  Bb7 {[%clk 0:02:50]} 11. Nf3 {[%clk 0:02:45]}  d5 {[%clk 0:02:47]} 12. h4 {[%clk 0:02:42]}  Kg7 {[%clk 0:02:43]} 13. h5 {[%clk 0:02:42]}  g5 {[%clk 0:02:43]} 14. h6+ {[%clk 0:02:26]}  Kg8 {[%clk 0:02:40]} 15. Bd3 {[%clk 0:02:19]}  Rf7 {[%clk 0:02:33]} 16. Rde1 {[%clk 0:02:12]}  Nc6 {[%clk 0:02:29]} 17. Rh5 {[%clk 0:01:42]}  Na5 {[%clk 0:02:20]} 18. cxd5 {[%clk 0:01:33]}  Bxd5 {[%clk 0:02:15]} 19. Nxg5 {[%clk 0:01:10]}  fxg5 {[%clk 0:02:09]} 20. Rxg5+ {[%clk 0:01:11]}  Kh8 {[%clk 0:02:03]} 21. Qe3 {[%clk 0:01:05]}  Bxa2 {[%clk 0:01:36]} 22. Qe5+ {[%clk 0:00:54]}  Qf6 {[%clk 0:01:35]} 23. Qxf6+ {[%clk 0:00:40]}  Rxf6 {[%clk 0:01:32]} 24. Re7 {[%clk 0:00:37]}  Rf7 {[%clk 0:01:21]} 25. Rg7 {[%clk 0:00:33]}  Rxg7 {[%clk 0:01:11]} 26. hxg7+ {[%clk 0:00:22]}  Kg8 {[%clk 0:01:10]} 27. Rxc7 {[%clk 0:00:22]}  Nb3+ {[%clk 0:01:02]} 28. Kd1 {[%clk 0:00:21]}  Nxd4 {[%clk 0:01:00]} 29. g4 {[%clk 0:00:18]}  Ne6 {[%clk 0:00:56]} 30. Re7 {[%clk 0:00:18]}  Nxg7 {[%clk 0:00:53]} 31. f4 {[%clk 0:00:18]}  Rd8 {[%clk 0:00:52]} 32. Ke2 {[%clk 0:00:17]}  Re8 {[%clk 0:00:51]} 33. Rxe8+ {[%clk 0:00:17]}  Nxe8 {[%clk 0:00:52]} 34. Ke3 {[%clk 0:00:17]}  Bb3 {[%clk 0:00:51]} 35. Kd4 {[%clk 0:00:17]}  Nd6 {[%clk 0:00:50]} 36. Ke5 {[%clk 0:00:16]}  Nc4+ {[%clk 0:00:49]} 37. Kd4 {[%clk 0:00:10]}  Nxb2 {[%clk 0:00:37]} 38. Ba6 {[%clk 0:00:10]}  Be6 {[%clk 0:00:33]} 39. f5 {[%clk 0:00:10]}  Bf7 {[%clk 0:00:33]} 40. Ke5 {[%clk 0:00:10]}  Nc4+ {[%clk 0:00:32]} 41. Kf6 {[%clk 0:00:10]}  Ne3 {[%clk 0:00:31]} 42. g5 {[%clk 0:00:09]}  Nd5+ {[%clk 0:00:28]} 43. Ke5 {[%clk 0:00:09]}  Ne7 {[%clk 0:00:25]} 44. Kf6 {[%clk 0:00:07]}  Nc6 {[%clk 0:00:22]} 45. g6 {[%clk 0:00:06]}  hxg6 {[%clk 0:00:21]} 46. fxg6 {[%clk 0:00:07]}  Bb3 {[%clk 0:00:19]} 47. g7 {[%clk 0:00:05]}  Nd8 {[%clk 0:00:18]} 48. Bd3 {[%clk 0:00:04]}  Ne6 {[%clk 0:00:16]} 49. Bg6 {[%clk 0:00:02]}  Nxg7 {[%clk 0:00:16]} 50. Bd3 {[%clk 0:00:02]}  a5 {[%clk 0:00:15]} 51. Ke5 {[%clk 0:00:03]}  a4 {[%clk 0:00:15]} 52. Bb1 {[%clk 0:00:03]}  a3 {[%clk 0:00:15]} 53. Kd4 {[%clk 0:00:04]}  a2 {[%clk 0:00:15]} 54. Bxa2 {[%clk 0:00:05]}  Bxa2 {[%clk 0:00:15]} 55. Kc3 {[%clk 0:00:06]}  b5 {[%clk 0:00:15]} 56. Kb4 {[%clk 0:00:07]}  Bc4 {[%clk 0:00:15]} 57. Kc3 {[%clk 0:00:08]}  Ne6 {[%clk 0:00:15]} 58. Kb4 {[%clk 0:00:08]}  Kf7 {[%clk 0:00:15]} 59. Kc3 {[%clk 0:00:09]}  Ke7 {[%clk 0:00:16]} 60. Kb4 {[%clk 0:00:10]}  Kd6 {[%clk 0:00:16]} 61. Kc3 {[%clk 0:00:11]}  Kc5 {[%clk 0:00:16]} 62. Kb2 {[%clk 0:00:11]}  Kb4 {[%clk 0:00:16]} 63. Kc2 {[%clk 0:00:12]}  Ka3 {[%clk 0:00:16]} 64. Kb1 {[%clk 0:00:11]}  Kb3 {[%clk 0:00:14]} 65. Ka1 {[%clk 0:00:12]}  Nd4 {[%clk 0:00:12]} 66. Kb1 {[%clk 0:00:13]}  Nc2 {[%clk 0:00:10]} 67. Kc1 {[%clk 0:00:14]}  Kc3 {[%clk 0:00:08]} 68. Kb1 {[%clk 0:00:15]}  b4 {[%clk 0:00:08]} 69. Kc1 {[%clk 0:00:14]}  b3 {[%clk 0:00:08]} 70. Kb1 {[%clk 0:00:15]}  Na3+ {[%clk 0:00:07]} 71. Kc1 {[%clk 0:00:14]}  b2+ {[%clk 0:00:07]} 72. Kd1 {[%clk 0:00:15]}  b1=Q# {[%clk 0:00:08]} 0-1


[Site "https://www.chess.com"]

[Event "Titled Tuesday Blitz July 11 Early 2023"]
[White "Dubov, Daniil"]
[Black "Nakamura, Hikaru"]
[WhiteFideId "24126055"]
[BlackFideId "2016192"]
[WhiteElo "3090"]
[BlackElo "3233"]
[Result "0-1"]
[Round "7"]
[TimeControl "180+2"]
[Date "2023.07.11"]
[WhiteClock "0:00:37"]
[BlackClock "0:01:56"]
[Board "1"]

1. e4 {[%clk 0:03:00]}  a6 {[%clk 0:02:57]} 2. Nf3 {[%clk 0:02:59]}  e6 {[%clk 0:02:56]} 3. d3 {[%clk 0:02:58]}  d5 {[%clk 0:02:56]} 4. Nbd2 {[%clk 0:02:58]}  g6 {[%clk 0:02:56]} 5. g3 {[%clk 0:02:58]}  Bg7 {[%clk 0:02:56]} 6. Bg2 {[%clk 0:02:58]}  c5 {[%clk 0:02:56]} 7. O-O {[%clk 0:02:59]}  Nc6 {[%clk 0:02:56]} 8. Re1 {[%clk 0:02:59]}  Nge7 {[%clk 0:02:57]} 9. c3 {[%clk 0:02:58]}  b6 {[%clk 0:02:55]} 10. e5 {[%clk 0:02:58]}  a5 {[%clk 0:02:51]} 11. a4 {[%clk 0:02:56]}  Qc7 {[%clk 0:02:52]} 12. Qe2 {[%clk 0:02:56]}  h6 {[%clk 0:02:50]} 13. h4 {[%clk 0:02:55]}  g5 {[%clk 0:02:50]} 14. hxg5 {[%clk 0:02:54]}  hxg5 {[%clk 0:02:51]} 15. Nxg5 {[%clk 0:02:55]}  Qxe5 {[%clk 0:02:51]} 16. Nde4 {[%clk 0:02:21]}  dxe4 {[%clk 0:02:52]} 17. Bf4 {[%clk 0:02:21]}  Qf5 {[%clk 0:02:48]} 18. Bxe4 {[%clk 0:01:31]}  Qf6 {[%clk 0:02:47]} 19. d4 {[%clk 0:01:32]}  cxd4 {[%clk 0:02:13]} 20. Bxc6+ {[%clk 0:00:55]}  Nxc6 {[%clk 0:02:13]} 21. Qb5 {[%clk 0:00:55]}  Bd7 {[%clk 0:02:05]} 22. Ne4 {[%clk 0:00:53]}  Qg6 {[%clk 0:02:02]} 23. Nd6+ {[%clk 0:00:46]}  Kf8 {[%clk 0:02:01]} 24. Kg2 {[%clk 0:00:37]}  Ne5 {[%clk 0:01:56]} 0-1


[Site "https://www.chess.com"]

[Event "Titled Tuesday Blitz July 11 Early 2023"]
[White "Firouzja, Alireza"]
[Black "Bok, Benjamin"]
[WhiteFideId "12573981"]
[BlackFideId "1017063"]
[WhiteElo "3100"]
[BlackElo "2976"]
[Result "0-1"]
[Round "7"]
[TimeControl "180+2"]
[Date "2023.07.11"]
[WhiteClock "0:00:27"]
[BlackClock "0:00:35"]
[Board "2"]

1. d4 {[%clk 0:03:00]}  Nf6 {[%clk 0:02:59]} 2. Bg5 {[%clk 0:03:01]}  d5 {[%clk 0:02:59]} 3. e3 {[%clk 0:03:01]}  c5 {[%clk 0:02:59]} 4. Bxf6 {[%clk 0:03:02]}  gxf6 {[%clk 0:02:59]} 5. dxc5 {[%clk 0:03:02]}  Nc6 {[%clk 0:03:00]} 6. Bb5 {[%clk 0:03:01]}  e6 {[%clk 0:02:58]} 7. b4 {[%clk 0:03:00]}  a5 {[%clk 0:02:55]} 8. c3 {[%clk 0:03:00]}  Bd7 {[%clk 0:02:55]} 9. Qb3 {[%clk 0:02:57]}  f5 {[%clk 0:02:40]} 10. Nd2 {[%clk 0:02:55]}  Qf6 {[%clk 0:02:28]} 11. Rc1 {[%clk 0:02:47]}  f4 {[%clk 0:02:25]} 12. Ngf3 {[%clk 0:02:10]}  fxe3 {[%clk 0:02:25]} 13. fxe3 {[%clk 0:02:11]}  Bh6 {[%clk 0:02:25]} 14. O-O {[%clk 0:02:12]}  Bxe3+ {[%clk 0:02:22]} 15. Kh1 {[%clk 0:02:12]}  O-O {[%clk 0:02:18]} 16. Bxc6 {[%clk 0:01:46]}  bxc6 {[%clk 0:01:40]} 17. Rce1 {[%clk 0:01:44]}  Qh6 {[%clk 0:01:37]} 18. Re2 {[%clk 0:01:44]}  f6 {[%clk 0:01:29]} 19. Rfe1 {[%clk 0:01:03]}  Bf4 {[%clk 0:01:27]} 20. a4 {[%clk 0:00:56]}  Kh8 {[%clk 0:01:13]} 21. b5 {[%clk 0:00:50]}  e5 {[%clk 0:01:14]} 22. c4 {[%clk 0:00:51]}  e4 {[%clk 0:01:08]} 23. cxd5 {[%clk 0:00:46]}  exf3 {[%clk 0:01:02]} 24. Nxf3 {[%clk 0:00:47]}  cxd5 {[%clk 0:00:59]} 25. c6 {[%clk 0:00:44]}  Bg4 {[%clk 0:00:58]} 26. b6 {[%clk 0:00:40]}  Bxf3 {[%clk 0:00:42]} 27. gxf3 {[%clk 0:00:40]}  Rg8 {[%clk 0:00:41]} 28. c7 {[%clk 0:00:31]}  Rae8 {[%clk 0:00:37]} 29. Qxd5 {[%clk 0:00:27]}  Qxh2+ {[%clk 0:00:35]} 0-1


[Site "https://www.chess.com"]